[Event "*** SCC Grand Prix: Titled Tuesday Blitz"]
[Site "Chess.com"]
[Date "2020.06.09"]
[Round "8"]
[White "Savva09022009"]
[Black "BikingBrian"]
[Result "0-1"]
[WhiteElo "2410"]
[BlackElo "2315"]
[TimeControl "180+1"]
[EndTime "10:35:11 PDT"]
[Termination "BikingBrian won by checkmate"]

1. d4 {[%clk 0:03:00.9]} 1... Nf6 {[%clk 0:02:58.5]} 2. Nc3 {[%clk 0:03:01.3]}
2... d5 {[%clk 0:02:57.8]} 3. Bf4 {[%clk 0:03:00.4]} 3... c5 {[%clk 0:02:57.6]}
4. e3 {[%clk 0:02:59.3]} 4... cxd4 {[%clk 0:02:57.7]} 5. exd4 {[%clk 0:02:57.1]}
5... a6 {[%clk 0:02:58.1]} 6. Nf3 {[%clk 0:02:56.7]} 6... Nc6 {[%clk 0:02:57.2]}
7. Be2 {[%clk 0:02:56.2]} 7... Bg4 {[%clk 0:02:57.2]} 8. O-O {[%clk 0:02:54.4]}
8... e6 {[%clk 0:02:57.2]} 9. h3 {[%clk 0:02:49.9]} 9... Bh5 {[%clk 0:02:49.3]}
10. Ne5 {[%clk 0:02:41.6]} 10... Bxe2 {[%clk 0:02:42.2]} 11. Nxe2 {[%clk
0:02:39.2]} 11... Bd6 {[%clk 0:02:34.3]} 12. c3 {[%clk 0:02:29.8]} 12... Qc7
{[%clk 0:02:28.3]} 13. Nxc6 {[%clk 0:02:23.3]} 13... bxc6 {[%clk 0:02:23.9]} 14.
Bxd6 {[%clk 0:02:14.3]} 14... Qxd6 {[%clk 0:02:23.7]} 15. Qd3 {[%clk 0:02:14.2]}
15... c5 {[%clk 0:02:18.3]} 16. c4 {[%clk 0:01:57.8]} 16... O-O {[%clk
0:02:12.6]} 17. cxd5 {[%clk 0:01:55.3]} 17... Qxd5 {[%clk 0:02:06.9]} 18. Rfd1
{[%clk 0:01:47]} 18... Rfd8 {[%clk 0:02:05]} 19. Qe3 {[%clk 0:01:42.8]} 19... c4
{[%clk 0:01:26.2]} 20. Nc3 {[%clk 0:01:28.2]} 20... Qc6 {[%clk 0:01:26]} 21.
Rac1 {[%clk 0:01:24.5]} 21... Rab8 {[%clk 0:01:23.3]} 22. Rc2 {[%clk 0:01:14.4]}
22... Nd5 {[%clk 0:01:15.1]} 23. Ne4 {[%clk 0:01:11.5]} 23... Nb4 {[%clk
0:01:10.3]} 24. Re2 {[%clk 0:01:08.8]} 24... Nxa2 {[%clk 0:00:57.6]} 25. Qg5
{[%clk 0:01:06.1]} 25... Kh8 {[%clk 0:00:47.5]} 26. Re3 {[%clk 0:01:02.1]} 26...
f5 {[%clk 0:00:34.8]} 27. Nf6 {[%clk 0:00:51.6]} 27... e5 {[%clk 0:00:24]} 28.
Nh5 {[%clk 0:00:39.8]} 28... Qg6 {[%clk 0:00:18.4]} 29. Qh4 {[%clk 0:00:38.9]}
29... Rxd4 {[%clk 0:00:17.2]} 30. Rxd4 {[%clk 0:00:37.2]} 30... exd4 {[%clk
0:00:17.2]} 31. Rg3 {[%clk 0:00:36.8]} 31... Qd6 {[%clk 0:00:10.4]} 32. Rxg7
{[%clk 0:00:27.4]} 32... Rxb2 {[%clk 0:00:10.3]} 33. Ra7 {[%clk 0:00:21.2]}
33... Rb1# {[%clk 0:00:10.3]} 0-1

[Event "*** SCC Grand Prix: Titled Tuesday Blitz"]
[Site "Chess.com"]
[Date "2020.06.09"]
[Round "8"]
[White "Xeniya2005"]
[Black "AungTZ"]
[Result "1-0"]
[WhiteElo "2311"]
[BlackElo "2117"]
[TimeControl "180+1"]
[EndTime "10:35:11 PDT"]
[Termination "Xeniya2005 won by resignation"]

1. e4 {[%clk 0:03:00.9]} 1... c5 {[%clk 0:02:59.8]} 2. Nf3 {[%clk 0:03:00.1]}
2... Nc6 {[%clk 0:02:58.5]} 3. d4 {[%clk 0:02:59.5]} 3... cxd4 {[%clk
0:02:58.7]} 4. Nxd4 {[%clk 0:03:00.3]} 4... Nf6 {[%clk 0:02:58.7]} 5. Nc3 {[%clk
0:03:00.2]} 5... d6 {[%clk 0:02:58.7]} 6. Bg5 {[%clk 0:02:58.2]} 6... e6 {[%clk
0:02:57.6]} 7. Qd2 {[%clk 0:02:35.4]} 7... a6 {[%clk 0:02:56.2]} 8. O-O-O {[%clk
0:02:34.6]} 8... h6 {[%clk 0:02:55.9]} 9. Nxc6 {[%clk 0:02:29.9]} 9... bxc6
{[%clk 0:02:54.9]} 10. Bf4 {[%clk 0:02:26.7]} 10... Qc7 {[%clk 0:02:52.7]} 11.
Bxd6 {[%clk 0:02:22.6]} 11... Bxd6 {[%clk 0:02:45.5]} 12. Qxd6 {[%clk
0:02:20.4]} 12... Qxd6 {[%clk 0:02:45.2]} 13. Rxd6 {[%clk 0:02:21.3]} 13... Bd7
{[%clk 0:02:45.5]} 14. Bc4 {[%clk 0:02:07.1]} 14... Ke7 {[%clk 0:02:46.4]} 15.
Rd2 {[%clk 0:01:54.9]} 15... Rhb8 {[%clk 0:02:40.6]} 16. Rhd1 {[%clk 0:01:50.9]}
16... Be8 {[%clk 0:02:39.9]} 17. a3 {[%clk 0:01:44.2]} 17... a5 {[%clk 0:02:39]}
18. Na4 {[%clk 0:01:35.9]} 18... Nd7 {[%clk 0:02:29]} 19. f4 {[%clk 0:01:31.6]}
19... Nb6 {[%clk 0:02:26.1]} 20. Nxb6 {[%clk 0:01:30.1]} 20... Rxb6 {[%clk
0:02:26]} 21. h4 {[%clk 0:01:05.7]} 21... a4 {[%clk 0:02:16.5]} 22. g4 {[%clk
0:01:04]} 22... Rab8 {[%clk 0:02:15.4]} 23. b3 {[%clk 0:00:51.5]} 23... axb3
{[%clk 0:02:12]} 24. cxb3 {[%clk 0:00:44.5]} 24... Ra8 {[%clk 0:02:10.9]} 25. a4
{[%clk 0:00:40.2]} 25... Rb4 {[%clk 0:02:07.7]} 26. Kc2 {[%clk 0:00:35.1]} 26...
c5 {[%clk 0:02:06.2]} 27. Kc3 {[%clk 0:00:30.4]} 27... Bc6 {[%clk 0:01:55.8]}
28. e5 {[%clk 0:00:26.2]} 28... Ra7 {[%clk 0:01:53.8]} 29. Rd6 {[%clk
0:00:25.2]} 29... Be8 {[%clk 0:01:49]} 30. f5 {[%clk 0:00:23.5]} 30... Bd7
{[%clk 0:01:46.1]} 31. R1d2 {[%clk 0:00:19.5]} 31... exf5 {[%clk 0:01:41.6]} 32.
gxf5 {[%clk 0:00:12.6]} 32... Bxf5 {[%clk 0:01:41.2]} 33. R6d5 {[%clk
0:00:12.3]} 33... Be6 {[%clk 0:01:40.1]} 34. Rxc5 {[%clk 0:00:12.3]} 34... Rb6
{[%clk 0:01:35.3]} 35. Bxe6 {[%clk 0:00:11.7]} 35... Rxe6 {[%clk 0:01:35]} 36.
a5 {[%clk 0:00:11.5]} 36... Raa6 {[%clk 0:01:26.3]} 37. b4 {[%clk 0:00:11.2]}
37... Rec6 {[%clk 0:01:24.5]} 38. Rd5 {[%clk 0:00:10.9]} 38... Ke6 {[%clk
0:01:22.9]} 39. Kb3 {[%clk 0:00:09.6]} 39... Rxc5 {[%clk 0:01:21.9]} 40. Rxc5
{[%clk 0:00:09.3]} 40... f5 {[%clk 0:01:22]} 41. exf6 {[%clk 0:00:09]} 41...
gxf6 {[%clk 0:01:21.6]} 42. Ka4 {[%clk 0:00:09]} 42... f5 {[%clk 0:01:20.1]} 43.
b5 {[%clk 0:00:09.3]} 43... Ra8 {[%clk 0:01:20.7]} 44. b6 {[%clk 0:00:08.6]}
44... f4 {[%clk 0:01:20.7]} 45. b7 {[%clk 0:00:08.1]} 45... Rb8 {[%clk
0:01:20.6]} 46. a6 {[%clk 0:00:08.2]} 46... Kd6 {[%clk 0:01:21.2]} 47. Rc4
{[%clk 0:00:06.8]} 47... Rf8 {[%clk 0:01:19.9]} 48. Kb5 {[%clk 0:00:05.7]} 48...
Rf5+ {[%clk 0:01:18.1]} 49. Kb6 {[%clk 0:00:05.7]} 49... Rf6 {[%clk 0:01:17.3]}
50. Rxf4 {[%clk 0:00:05.2]} 50... Kd5+ {[%clk 0:01:18.2]} 51. Rxf6 {[%clk
0:00:05]} 51... Ke5 {[%clk 0:01:17.5]} 52. Rc6 {[%clk 0:00:05.6]} 1-0

[Event "*** SCC Grand Prix: Titled Tuesday Blitz"]
[Site "Chess.com"]
[Date "2020.06.09"]
[Round "8"]
[White "vitnik2020"]
[Black "MFBerna"]
[Result "1-0"]
[WhiteElo "2315"]
[BlackElo "2394"]
[TimeControl "180+1"]
[EndTime "10:35:12 PDT"]
[Termination "vitnik2020 won on time"]

1. e4 {[%clk 0:03:00.9]} 1... c5 {[%clk 0:02:55.3]} 2. Nf3 {[%clk 0:03:00.1]}
2... d6 {[%clk 0:02:53.7]} 3. d4 {[%clk 0:02:59.1]} 3... cxd4 {[%clk 0:02:54.6]}
4. Nxd4 {[%clk 0:02:58.5]} 4... Nf6 {[%clk 0:02:54.8]} 5. Nc3 {[%clk 0:02:57.7]}
5... a6 {[%clk 0:02:45]} 6. Be2 {[%clk 0:02:56.5]} 6... e5 {[%clk 0:02:43.1]} 7.
Nf3 {[%clk 0:02:55.6]} 7... Be7 {[%clk 0:02:40]} 8. Bg5 {[%clk 0:02:53.3]} 8...
Be6 {[%clk 0:02:38.8]} 9. Bxf6 {[%clk 0:02:52]} 9... Bxf6 {[%clk 0:02:38.7]} 10.
Qd2 {[%clk 0:02:52]} 10... Nc6 {[%clk 0:02:31.4]} 11. Rd1 {[%clk 0:02:51.1]}
11... Be7 {[%clk 0:02:23]} 12. Nd5 {[%clk 0:02:49.7]} 12... O-O {[%clk
0:02:20.2]} 13. c3 {[%clk 0:02:37.9]} 13... Bxd5 {[%clk 0:02:17.5]} 14. Qxd5
{[%clk 0:02:37.3]} 14... Qc7 {[%clk 0:02:07.3]} 15. O-O {[%clk 0:02:34.3]} 15...
Rad8 {[%clk 0:01:54.6]} 16. a4 {[%clk 0:02:24.7]} 16... g6 {[%clk 0:01:41.4]}
17. Bc4 {[%clk 0:02:17.4]} 17... Kg7 {[%clk 0:01:18.4]} 18. Qd3 {[%clk
0:02:15.4]} 18... f5 {[%clk 0:01:09.9]} 19. Bd5 {[%clk 0:02:14.6]} 19... fxe4
{[%clk 0:00:54.9]} 20. Qxe4 {[%clk 0:02:09.8]} 20... Rf4 {[%clk 0:00:53.3]} 21.
Qe2 {[%clk 0:02:08.7]} 21... Rdf8 {[%clk 0:00:46.1]} 22. b4 {[%clk 0:02:06.4]}
22... a5 {[%clk 0:00:39.6]} 23. b5 {[%clk 0:02:02.9]} 23... Nb8 {[%clk
0:00:39.3]} 24. c4 {[%clk 0:01:59.5]} 24... Nd7 {[%clk 0:00:38.8]} 25. g3 {[%clk
0:01:48.9]} 25... R4f5 {[%clk 0:00:35.5]} 26. Nd2 {[%clk 0:01:40.3]} 26... Nc5
{[%clk 0:00:35.1]} 27. Ra1 {[%clk 0:01:34]} 27... b6 {[%clk 0:00:20.3]} 28. Ne4
{[%clk 0:01:32.8]} 28... Nxe4 {[%clk 0:00:19.9]} 29. Qxe4 {[%clk 0:01:30.3]}
29... Qc5 {[%clk 0:00:19.4]} 30. Ra2 {[%clk 0:01:27]} 30... Bg5 {[%clk
0:00:15.1]} 31. h4 {[%clk 0:01:21.7]} 31... Be3 {[%clk 0:00:13.7]} 32. Kg2
{[%clk 0:01:10.2]} 32... Bxf2 {[%clk 0:00:13.6]} 33. Be6 {[%clk 0:01:03.5]}
33... R5f6 {[%clk 0:00:12.9]} 34. Qb7+ {[%clk 0:01:01.8]} 34... Kh6 {[%clk
0:00:12.3]} 35. Bd5 {[%clk 0:00:56.4]} 35... Bxg3 {[%clk 0:00:11.1]} 36. Rxf6
{[%clk 0:00:53.6]} 36... Rxf6 {[%clk 0:00:12]} 37. Bg8 {[%clk 0:00:51]} 37...
Rf2+ {[%clk 0:00:04]} 38. Kh3 {[%clk 0:00:47.5]} 38... Rh2+ {[%clk 0:00:01.9]}
39. Rxh2 {[%clk 0:00:46.2]} 1-0

[Event "*** SCC Grand Prix: Titled Tuesday Blitz"]
[Site "Chess.com"]
[Date "2020.06.09"]
[Round "8"]
[White "oskariot"]
[Black "RestartingChess"]
[Result "1-0"]
[WhiteElo "2648"]
[BlackElo "2477"]
[TimeControl "180+1"]
[EndTime "10:35:14 PDT"]
[Termination "oskariot won by checkmate"]

1. e4 {[%clk 0:03:00.9]} 1... Nf6 {[%clk 0:02:55.2]} 2. e5 {[%clk 0:03:01]} 2...
Nd5 {[%clk 0:02:55]} 3. d4 {[%clk 0:03:01.6]} 3... d6 {[%clk 0:02:54.8]} 4. Nf3
{[%clk 0:03:02.5]} 4... g6 {[%clk 0:02:54.8]} 5. exd6 {[%clk 0:03:02.6]} 5...
cxd6 {[%clk 0:02:54]} 6. Be2 {[%clk 0:03:03.5]} 6... Bg7 {[%clk 0:02:54.3]} 7.
O-O {[%clk 0:03:04.4]} 7... O-O {[%clk 0:02:54.5]} 8. c4 {[%clk 0:03:05.3]} 8...
Nf6 {[%clk 0:02:53.4]} 9. Nc3 {[%clk 0:03:05.8]} 9... Bf5 {[%clk 0:02:53.6]} 10.
Re1 {[%clk 0:03:05.5]} 10... Nc6 {[%clk 0:02:53.8]} 11. Be3 {[%clk 0:03:05.8]}
11... Rc8 {[%clk 0:02:51.8]} 12. h3 {[%clk 0:03:04.7]} 12... a6 {[%clk 0:02:52]}
13. Rc1 {[%clk 0:03:04.4]} 13... d5 {[%clk 0:02:45.6]} 14. c5 {[%clk 0:03:04.6]}
14... Ne4 {[%clk 0:02:43.1]} 15. a3 {[%clk 0:03:02.8]} 15... e5 {[%clk
0:02:29.7]} 16. dxe5 {[%clk 0:02:59.6]} 16... Nxc3 {[%clk 0:02:28.9]} 17. Rxc3
{[%clk 0:02:58.8]} 17... Nxe5 {[%clk 0:02:29.3]} 18. Nxe5 {[%clk 0:02:57.3]}
18... Bxe5 {[%clk 0:02:28.3]} 19. Bd4 {[%clk 0:02:57.8]} 19... Re8 {[%clk
0:02:23.3]} 20. Bf3 {[%clk 0:02:48.4]} 20... Bxd4 {[%clk 0:02:21.1]} 21. Rxe8+
{[%clk 0:02:49.3]} 21... Qxe8 {[%clk 0:02:21.5]} 22. Qxd4 {[%clk 0:02:50.2]}
22... Qe1+ {[%clk 0:02:21.4]} 23. Kh2 {[%clk 0:02:50.4]} 23... Rd8 {[%clk
0:02:12.2]} 24. Re3 {[%clk 0:02:31.1]} 24... Qa5 {[%clk 0:01:53.6]} 25. Re7
{[%clk 0:02:29.8]} 25... Be6 {[%clk 0:01:48.1]} 26. b4 {[%clk 0:02:14]} 26...
Qxa3 {[%clk 0:01:42.6]} 27. Rxb7 {[%clk 0:02:12.8]} 27... Rc8 {[%clk 0:01:15.7]}
28. Bxd5 {[%clk 0:02:05.4]} 28... Bxd5 {[%clk 0:00:27.5]} 29. Qxd5 {[%clk
0:02:02.4]} 29... Rf8 {[%clk 0:00:28.4]} 30. Qd4 {[%clk 0:01:46.6]} 30... Qa4
{[%clk 0:00:19.4]} 31. Qe5 {[%clk 0:01:18.7]} 31... Qc6 {[%clk 0:00:16.6]} 32.
Rc7 {[%clk 0:01:17.3]} 32... Qb5 {[%clk 0:00:16.9]} 33. Qf4 {[%clk 0:01:17.2]}
33... a5 {[%clk 0:00:17]} 34. bxa5 {[%clk 0:01:17.3]} 34... Qxa5 {[%clk
0:00:17.9]} 35. c6 {[%clk 0:01:12.4]} 35... Qb6 {[%clk 0:00:18.4]} 36. h4 {[%clk
0:01:12.2]} 36... Kg7 {[%clk 0:00:17.9]} 37. h5 {[%clk 0:01:06.4]} 37... gxh5
{[%clk 0:00:18.2]} 38. Qg5+ {[%clk 0:00:54.1]} 38... Kh8 {[%clk 0:00:18.3]} 39.
Qf6+ {[%clk 0:00:55]} 39... Kg8 {[%clk 0:00:18.8]} 40. Re7 {[%clk 0:00:55.5]}
40... h6 {[%clk 0:00:09.7]} 41. Re3 {[%clk 0:00:50.9]} 41... Kh7 {[%clk
0:00:06.6]} 42. Rg3 {[%clk 0:00:47.2]} 42... Qc7 {[%clk 0:00:02.7]} 43. Qg7#
{[%clk 0:00:45.2]} 1-0

[Event "*** SCC Grand Prix: Titled Tuesday Blitz"]
[Site "Chess.com"]
[Date "2020.06.09"]
[Round "8"]
[White "publicaccountcze"]
[Black "Kapibara_Warri0r"]
[Result "1-0"]
[WhiteElo "2234"]
[BlackElo "2107"]
[TimeControl "180+1"]
[EndTime "10:35:16 PDT"]
[Termination "publicaccountcze won by checkmate"]

1. e4 {[%clk 0:03:00.9]} 1... e5 {[%clk 0:02:59.4]} 2. Nf3 {[%clk 0:03:00.5]}
2... Nc6 {[%clk 0:02:59.5]} 3. Nc3 {[%clk 0:02:59]} 3... Nf6 {[%clk 0:02:58.7]}
4. d4 {[%clk 0:02:58.5]} 4... exd4 {[%clk 0:02:58]} 5. Nxd4 {[%clk 0:02:58.8]}
5... Bb4 {[%clk 0:02:58.5]} 6. Nxc6 {[%clk 0:02:58.9]} 6... bxc6 {[%clk
0:02:59.4]} 7. Bd3 {[%clk 0:02:58.7]} 7... d6 {[%clk 0:03:00]} 8. h3 {[%clk
0:02:56.5]} 8... h6 {[%clk 0:02:33.9]} 9. O-O {[%clk 0:02:55.3]} 9... g5 {[%clk
0:02:22]} 10. Re1 {[%clk 0:02:47.2]} 10... Be6 {[%clk 0:02:06.2]} 11. f4 {[%clk
0:02:35.8]} 11... Bc5+ {[%clk 0:02:03]} 12. Kh2 {[%clk 0:02:27.4]} 12... g4
{[%clk 0:02:01.4]} 13. f5 {[%clk 0:02:21.2]} 13... gxh3 {[%clk 0:01:10.5]} 14.
fxe6 {[%clk 0:02:17.7]} 14... hxg2 {[%clk 0:01:10.1]} 15. exf7+ {[%clk
0:02:14.6]} 15... Kxf7 {[%clk 0:01:03.5]} 16. Qf3 {[%clk 0:01:45.7]} 16... g1=Q+
{[%clk 0:00:52.5]} 17. Rxg1 {[%clk 0:01:45.4]} 17... Bxg1+ {[%clk 0:00:51.9]}
18. Kxg1 {[%clk 0:01:45.4]} 18... Rg8+ {[%clk 0:00:45.5]} 19. Kf1 {[%clk
0:01:38.5]} 19... Ke8 {[%clk 0:00:18.9]} 20. e5 {[%clk 0:00:57.3]} 20... Ng4
{[%clk 0:00:13.9]} 21. Qxc6+ {[%clk 0:00:45.9]} 21... Ke7 {[%clk 0:00:14.1]} 22.
exd6+ {[%clk 0:00:44.8]} 22... cxd6 {[%clk 0:00:13.2]} 23. Nd5+ {[%clk 0:00:41]}
23... Ke6 {[%clk 0:00:11]} 24. Nc7+ {[%clk 0:00:31.1]} 24... Kf6 {[%clk
0:00:08.4]} 25. Qf3+ {[%clk 0:00:18.9]} 25... Ke7 {[%clk 0:00:07.5]} 26. Nd5+
{[%clk 0:00:18.4]} 26... Kd7 {[%clk 0:00:07.3]} 27. Bf5+ {[%clk 0:00:18.4]}
27... Kc6 {[%clk 0:00:05.9]} 28. Ne7+ {[%clk 0:00:16.9]} 28... Kb6 {[%clk
0:00:05.4]} 29. Qc6+ {[%clk 0:00:15.8]} 29... Ka5 {[%clk 0:00:04.9]} 30. Bd2#
{[%clk 0:00:15.9]} 1-0

[Event "*** SCC Grand Prix: Titled Tuesday Blitz"]
[Site "Chess.com"]
[Date "2020.06.09"]
[Round "8"]
[White "Gennady_Kozlov"]
[Black "Thipsay"]
[Result "1-0"]
[WhiteElo "2563"]
[BlackElo "2434"]
[TimeControl "180+1"]
[EndTime "10:35:17 PDT"]
[Termination "Gennady_Kozlov won by resignation"]

1. b3 {[%clk 0:03:00.9]} 1... Nf6 {[%clk 0:02:59]} 2. Bb2 {[%clk 0:02:58.5]}
2... g6 {[%clk 0:02:59.1]} 3. e3 {[%clk 0:02:54.6]} 3... Bg7 {[%clk 0:02:59]} 4.
f4 {[%clk 0:02:55.3]} 4... O-O {[%clk 0:02:58.6]} 5. Nf3 {[%clk 0:02:55.8]} 5...
d6 {[%clk 0:02:58.9]} 6. Be2 {[%clk 0:02:56.3]} 6... Nc6 {[%clk 0:02:59]} 7. O-O
{[%clk 0:02:55.5]} 7... e5 {[%clk 0:02:59.1]} 8. fxe5 {[%clk 0:02:54.8]} 8...
Nd7 {[%clk 0:02:58.9]} 9. Nc3 {[%clk 0:02:54.5]} 9... dxe5 {[%clk 0:02:58.7]}
10. Qe1 {[%clk 0:02:54.1]} 10... h6 {[%clk 0:02:44.8]} 11. a3 {[%clk 0:02:53.4]}
11... e4 {[%clk 0:02:43.1]} 12. Nh4 {[%clk 0:02:47]} 12... Bf6 {[%clk
0:02:33.3]} 13. g3 {[%clk 0:02:45.4]} 13... Qe7 {[%clk 0:02:22.3]} 14. Ng2
{[%clk 0:02:43.4]} 14... Bg7 {[%clk 0:02:20.3]} 15. Nd5 {[%clk 0:02:42.2]} 15...
Qd6 {[%clk 0:02:18.5]} 16. Bxg7 {[%clk 0:02:34.9]} 16... Kxg7 {[%clk 0:02:18.5]}
17. c4 {[%clk 0:02:34.1]} 17... Nde5 {[%clk 0:02:12.9]} 18. Qc1 {[%clk
0:02:28.9]} 18... Bh3 {[%clk 0:02:04]} 19. Qc3 {[%clk 0:02:26.6]} 19... f6
{[%clk 0:02:04]} 20. Rf2 {[%clk 0:02:23.1]} 20... Bxg2 {[%clk 0:01:59.9]} 21.
Kxg2 {[%clk 0:02:23.7]} 21... Ne7 {[%clk 0:02:00.1]} 22. Nf4 {[%clk 0:02:19.2]}
22... Rad8 {[%clk 0:01:51.9]} 23. Rd1 {[%clk 0:02:13.7]} 23... g5 {[%clk
0:01:47.3]} 24. Nh5+ {[%clk 0:02:06.3]} 24... Kg6 {[%clk 0:01:47.4]} 25. g4
{[%clk 0:02:05.5]} 25... Ng8 {[%clk 0:01:42.3]} 26. Ng3 {[%clk 0:02:05.1]} 26...
Kh7 {[%clk 0:01:29.1]} 27. Nxe4 {[%clk 0:01:56.9]} 27... Qc6 {[%clk 0:01:29.3]}
28. d3 {[%clk 0:01:56.5]} 28... Kg7 {[%clk 0:01:26.9]} 29. Bf3 {[%clk
0:01:55.4]} 29... Qe8 {[%clk 0:01:24.1]} 30. Ng3 {[%clk 0:01:53.9]} 30... Nxf3
{[%clk 0:01:02.6]} 31. Rxf3 {[%clk 0:01:52.8]} 31... Qd7 {[%clk 0:01:00.1]} 32.
Nf5+ {[%clk 0:01:41.2]} 32... Kh8 {[%clk 0:00:56.2]} 33. d4 {[%clk 0:01:42]}
33... Rde8 {[%clk 0:00:53]} 34. h4 {[%clk 0:01:31.3]} 34... Re4 {[%clk
0:00:51.1]} 35. Rg3 {[%clk 0:01:21.6]} 35... Rxg4 {[%clk 0:00:45.8]} 36. Rxg4
{[%clk 0:01:20.4]} 36... Qxf5 {[%clk 0:00:45.9]} 37. Rg3 {[%clk 0:01:18.3]}
37... gxh4 {[%clk 0:00:45.8]} 38. Rf3 {[%clk 0:01:18]} 38... Qg4+ {[%clk
0:00:45.6]} 39. Kf2 {[%clk 0:01:18.1]} 39... h3 {[%clk 0:00:45.3]} 40. Rg1
{[%clk 0:01:16.6]} 40... Qh4+ {[%clk 0:00:45.3]} 41. Ke2 {[%clk 0:01:16]} 41...
h2 {[%clk 0:00:45.1]} 42. Rh1 {[%clk 0:01:16]} 42... f5 {[%clk 0:00:30.8]} 43.
Qe1 {[%clk 0:01:10.6]} 43... Qh5 {[%clk 0:00:27.8]} 44. Qf2 {[%clk 0:01:05.5]}
44... Nf6 {[%clk 0:00:25.4]} 45. Rxh2 {[%clk 0:01:05]} 45... Qg4 {[%clk
0:00:24.4]} 46. Qg3 {[%clk 0:01:01.4]} 46... Qxg3 {[%clk 0:00:19.9]} 47. Rxg3
{[%clk 0:01:01.2]} 47... Ng4 {[%clk 0:00:20.8]} 48. Rh5 {[%clk 0:01:00.3]} 48...
Kg7 {[%clk 0:00:20.8]} 49. e4 {[%clk 0:00:59.7]} 49... Re8 {[%clk 0:00:21.1]}
50. Rxf5 {[%clk 0:00:58.5]} 50... Rxe4+ {[%clk 0:00:20.3]} 51. Kf3 {[%clk
0:00:59]} 1-0

[Event "*** SCC Grand Prix: Titled Tuesday Blitz"]
[Site "Chess.com"]
[Date "2020.06.09"]
[Round "8"]
[White "PattyCastillo"]
[Black "SergioGarciaFuentes"]
[Result "0-1"]
[WhiteElo "1911"]
[BlackElo "2224"]
[TimeControl "180+1"]
[EndTime "10:35:20 PDT"]
[Termination "SergioGarciaFuentes won by resignation"]

1. d4 {[%clk 0:03:00.9]} 1... d5 {[%clk 0:02:54.3]} 2. Nf3 {[%clk 0:03:00.3]}
2... Nc6 {[%clk 0:02:54.3]} 3. e3 {[%clk 0:02:59.6]} 3... Bg4 {[%clk 0:02:54.2]}
4. Be2 {[%clk 0:02:55.9]} 4... e6 {[%clk 0:02:49.7]} 5. h3 {[%clk 0:02:55.2]}
5... Bh5 {[%clk 0:02:48.4]} 6. O-O {[%clk 0:02:53.4]} 6... Nf6 {[%clk 0:02:46]}
7. c4 {[%clk 0:02:52.9]} 7... Be7 {[%clk 0:02:34.8]} 8. Qb3 {[%clk 0:02:46.4]}
8... Rb8 {[%clk 0:02:32.1]} 9. Nc3 {[%clk 0:02:32.5]} 9... O-O {[%clk
0:02:30.8]} 10. Bd2 {[%clk 0:02:29.6]} 10... Bxf3 {[%clk 0:02:17.7]} 11. Bxf3
{[%clk 0:02:27.5]} 11... Na5 {[%clk 0:02:17.9]} 12. Qc2 {[%clk 0:02:24.3]} 12...
Nxc4 {[%clk 0:02:18.2]} 13. b3 {[%clk 0:02:14.1]} 13... Nxd2 {[%clk 0:02:09.4]}
14. Qxd2 {[%clk 0:02:13.8]} 14... c6 {[%clk 0:02:09.7]} 15. Rad1 {[%clk
0:02:13.3]} 15... Bb4 {[%clk 0:02:06.3]} 16. Qc2 {[%clk 0:02:12.5]} 16... Qa5
{[%clk 0:02:06.6]} 17. Na4 {[%clk 0:02:01.6]} 17... Rbc8 {[%clk 0:02:02.6]} 18.
Rc1 {[%clk 0:01:51.9]} 18... Nd7 {[%clk 0:01:47]} 19. e4 {[%clk 0:01:49.7]}
19... dxe4 {[%clk 0:01:46.1]} 20. Bxe4 {[%clk 0:01:49.4]} 20... g6 {[%clk
0:01:46.4]} 21. Rfd1 {[%clk 0:01:40.4]} 21... Ba3 {[%clk 0:01:38.1]} 22. Rb1
{[%clk 0:01:35.6]} 22... Bb4 {[%clk 0:01:32.5]} 23. Rbc1 {[%clk 0:01:14.7]}
23... Rfd8 {[%clk 0:01:31.5]} 24. Qe2 {[%clk 0:00:59.4]} 24... Nf6 {[%clk
0:01:20.4]} 25. Bb1 {[%clk 0:00:57.6]} 25... Ba3 {[%clk 0:01:16.5]} 26. Rc2
{[%clk 0:00:49.3]} 26... Nd5 {[%clk 0:01:06.7]} 27. Qf3 {[%clk 0:00:42.4]} 27...
Qc7 {[%clk 0:01:00.9]} 28. Nc5 {[%clk 0:00:38.9]} 28... Bxc5 {[%clk 0:00:56.3]}
29. dxc5 {[%clk 0:00:38.9]} 29... Qe5 {[%clk 0:00:48.6]} 30. Re2 {[%clk
0:00:33.6]} 30... Qg7 {[%clk 0:00:44]} 31. Red2 {[%clk 0:00:24.3]} 31... Re8
{[%clk 0:00:42.8]} 32. Be4 {[%clk 0:00:22.5]} 32... f5 {[%clk 0:00:39.6]} 33.
Bxd5 {[%clk 0:00:21.2]} 33... exd5 {[%clk 0:00:40.2]} 34. Re2 {[%clk 0:00:19.4]}
34... Re4 {[%clk 0:00:38.2]} 35. Rde1 {[%clk 0:00:18.6]} 35... Rce8 {[%clk
0:00:37.2]} 36. Qd3 {[%clk 0:00:18.7]} 36... Qe5 {[%clk 0:00:32.9]} 37. Kf1
{[%clk 0:00:17.5]} 37... Rxe2 {[%clk 0:00:30.7]} 38. Rxe2 {[%clk 0:00:17.4]}
38... Qa1+ {[%clk 0:00:28.4]} 0-1